[Event "*** Titled Tuesday Blitz"]
[Site "Chess.com"]
[Date "2021.04.27"]
[Round "3"]
[White "WildBizon"]
[Black "jens1102"]
[Result "1-0"]
[WhiteElo "2621"]
[BlackElo "2403"]
[TimeControl "180+1"]
[EndTime "10:28:46 PDT"]
[Termination "WildBizon won by resignation"]

1. e4 {[%clk 0:03:00.9]} 1... e5 {[%clk 0:01:37.6]} 2. Nf3 {[%clk 0:02:55.4]}
2... Nc6 {[%clk 0:01:38.5]} 3. c3 {[%clk 0:02:51.3]} 3... d5 {[%clk 0:01:35.9]}
4. Qa4 {[%clk 0:02:47.9]} 4... dxe4 {[%clk 0:01:25.1]} 5. Nxe5 {[%clk
0:02:41.3]} 5... Nf6 {[%clk 0:01:24.1]} 6. Nxc6 {[%clk 0:02:40]} 6... bxc6
{[%clk 0:01:25]} 7. Qxc6+ {[%clk 0:02:39.5]} 7... Bd7 {[%clk 0:01:25.5]} 8. Qa6
{[%clk 0:02:35.8]} 8... Bd6 {[%clk 0:01:18]} 9. Be2 {[%clk 0:02:32.7]} 9... O-O
{[%clk 0:01:16.8]} 10. O-O {[%clk 0:02:32.2]} 10... Ng4 {[%clk 0:00:59]} 11. h3
{[%clk 0:02:09.2]} 11... Qh4 {[%clk 0:00:44.1]} 12. d4 {[%clk 0:01:46.1]} 12...
Nh2 {[%clk 0:00:14.9]} 13. Nd2 {[%clk 0:01:07.1]} 13... Nxf1 {[%clk 0:00:13.9]}
14. Nxf1 {[%clk 0:01:05.6]} 14... f5 {[%clk 0:00:14.1]} 15. c4 {[%clk
0:01:01.5]} 15... f4 {[%clk 0:00:13.1]} 16. c5 {[%clk 0:01:02]} 16... f3 {[%clk
0:00:13.4]} 17. Bc4+ {[%clk 0:00:59.8]} 17... Kh8 {[%clk 0:00:13.5]} 18. cxd6
{[%clk 0:00:46.5]} 18... fxg2 {[%clk 0:00:13.2]} 19. Ng3 {[%clk 0:00:46.7]}
19... Bxh3 {[%clk 0:00:08.7]} 20. Qb5 {[%clk 0:00:35.2]} 20... Qxg3 {[%clk
0:00:06.7]} 21. Be3 {[%clk 0:00:30.9]} 21... Qh4 {[%clk 0:00:05.5]} 22. Qg5
{[%clk 0:00:30.4]} 22... Qxg5 {[%clk 0:00:05.1]} 23. Bxg5 {[%clk 0:00:31.3]}
23... cxd6 {[%clk 0:00:05.3]} 24. Be7 {[%clk 0:00:29.3]} 24... Rfe8 {[%clk
0:00:05.2]} 25. Bxd6 {[%clk 0:00:28.9]} 25... Rac8 {[%clk 0:00:06.1]} 26. b3
{[%clk 0:00:26.9]} 26... Rcd8 {[%clk 0:00:06.7]} 27. Be5 {[%clk 0:00:26.1]}
27... Be6 {[%clk 0:00:07.6]} 28. Bb5 {[%clk 0:00:24.4]} 28... Bd7 {[%clk
0:00:07.9]} 29. Bxd7 {[%clk 0:00:23.4]} 29... Rxd7 {[%clk 0:00:08.8]} 30. Kxg2
{[%clk 0:00:24.3]} 30... Red8 {[%clk 0:00:09.3]} 31. Re1 {[%clk 0:00:23.6]}
31... Rd5 {[%clk 0:00:10]} 32. Rxe4 {[%clk 0:00:23.5]} 32... Ra5 {[%clk
0:00:10.9]} 33. a4 {[%clk 0:00:23.4]} 33... Rad5 {[%clk 0:00:11.5]} 34. Rg4
{[%clk 0:00:23.6]} 34... R8d7 {[%clk 0:00:11.7]} 35. Kf3 {[%clk 0:00:23.7]}
35... Kg8 {[%clk 0:00:12.2]} 36. Ke4 {[%clk 0:00:24.1]} 36... a5 {[%clk
0:00:12.5]} 37. f4 {[%clk 0:00:24.5]} 37... h6 {[%clk 0:00:13]} 38. f5 {[%clk
0:00:24.9]} 38... Rd8 {[%clk 0:00:13.7]} 39. f6 {[%clk 0:00:25.2]} 39... g5
{[%clk 0:00:14.5]} 40. Kf5 {[%clk 0:00:25]} 40... Kf7 {[%clk 0:00:15.2]} 41. Rg1
{[%clk 0:00:25.2]} 41... R5d7 {[%clk 0:00:15.4]} 42. Rh1 {[%clk 0:00:25.5]}
42... Rh8 {[%clk 0:00:16.1]} 43. Rc1 {[%clk 0:00:25.2]} 43... Rb7 {[%clk
0:00:14.5]} 44. Rc3 {[%clk 0:00:25.2]} 44... Rg8 {[%clk 0:00:14.7]} 45. d5
{[%clk 0:00:25.4]} 45... g4 {[%clk 0:00:15]} 46. Bf4 {[%clk 0:00:25.6]} 46... h5
{[%clk 0:00:15.4]} 47. d6 {[%clk 0:00:25]} 47... h4 {[%clk 0:00:15.8]} 48. Bg5
{[%clk 0:00:22.5]} 48... h3 {[%clk 0:00:15.7]} 49. Kxg4 {[%clk 0:00:21.9]} 49...
h2 {[%clk 0:00:15.7]} 50. Rh3 {[%clk 0:00:21.7]} 50... Rb4+ {[%clk 0:00:15.3]}
51. Kf5 {[%clk 0:00:20.3]} 51... Rxb3 {[%clk 0:00:16]} 52. Rxh2 {[%clk
0:00:20.3]} 52... Rf3+ {[%clk 0:00:15.6]} 53. Bf4 {[%clk 0:00:20.9]} 53... Rd3
{[%clk 0:00:14]} 54. Rh7+ {[%clk 0:00:21.1]} 54... Ke8 {[%clk 0:00:14.6]} 55.
f7+ {[%clk 0:00:21.6]} 55... Kf8 {[%clk 0:00:15.2]} 56. Bh6+ {[%clk 0:00:21.8]}
56... Rg7 {[%clk 0:00:14.2]} 57. Bxg7+ {[%clk 0:00:20.7]} 57... Kxf7 {[%clk
0:00:14.9]} 58. Be5+ {[%clk 0:00:21.3]} 58... Kg8 {[%clk 0:00:15.8]} 1-0

[Event "*** Titled Tuesday Blitz"]
[Site "Chess.com"]
[Date "2021.04.27"]
[Round "3"]
[White "Piotrek1979"]
[Black "lacafi"]
[Result "1-0"]
[WhiteElo "2335"]
[BlackElo "2175"]
[TimeControl "180+1"]
[EndTime "10:28:46 PDT"]
[Termination "Piotrek1979 won on time"]

1. e4 {[%clk 0:03:00.9]} 1... c6 {[%clk 0:02:59.5]} 2. d4 {[%clk 0:02:58.2]}
2... d5 {[%clk 0:03:00.1]} 3. Nc3 {[%clk 0:02:58]} 3... dxe4 {[%clk 0:03:00.1]}
4. Nxe4 {[%clk 0:02:58.9]} 4... Nf6 {[%clk 0:03:00.9]} 5. Nxf6+ {[%clk
0:02:58.5]} 5... exf6 {[%clk 0:03:01.8]} 6. c3 {[%clk 0:02:53.1]} 6... Bd6
{[%clk 0:03:02.2]} 7. Bd3 {[%clk 0:02:52.4]} 7... O-O {[%clk 0:03:01.6]} 8. Ne2
{[%clk 0:02:45.4]} 8... Re8 {[%clk 0:03:01.8]} 9. O-O {[%clk 0:02:41.6]} 9...
Nd7 {[%clk 0:02:59.9]} 10. Bf4 {[%clk 0:02:35.6]} 10... Nf8 {[%clk 0:02:57.6]}
11. Qd2 {[%clk 0:02:28.2]} 11... Ne6 {[%clk 0:02:53.1]} 12. Bg3 {[%clk
0:02:18.8]} 12... Qc7 {[%clk 0:02:47.9]} 13. Rfe1 {[%clk 0:02:15.3]} 13... Bd7
{[%clk 0:02:40.8]} 14. c4 {[%clk 0:02:06.2]} 14... b6 {[%clk 0:02:31.8]} 15.
Rac1 {[%clk 0:01:57.3]} 15... h5 {[%clk 0:02:20.8]} 16. d5 {[%clk 0:01:54.6]}
16... Nc5 {[%clk 0:02:08.2]} 17. Bb1 {[%clk 0:01:41]} 17... Rad8 {[%clk
0:01:58.9]} 18. Bxd6 {[%clk 0:01:18.3]} 18... Qxd6 {[%clk 0:01:58.7]} 19. Nf4
{[%clk 0:01:17.9]} 19... h4 {[%clk 0:01:50.7]} 20. b4 {[%clk 0:01:00.2]} 20...
Nb7 {[%clk 0:01:39.7]} 21. a3 {[%clk 0:00:45.9]} 21... a5 {[%clk 0:01:16]} 22.
Qd3 {[%clk 0:00:29.8]} 22... f5 {[%clk 0:01:00.5]} 23. dxc6 {[%clk 0:00:28.5]}
23... Qxc6 {[%clk 0:00:52.4]} 24. Nd5 {[%clk 0:00:26]} 24... Be6 {[%clk
0:00:43.6]} 25. Ba2 {[%clk 0:00:25.4]} 25... axb4 {[%clk 0:00:25.4]} 26. axb4
{[%clk 0:00:25.2]} 26... Qd6 {[%clk 0:00:19.3]} 27. Qd4 {[%clk 0:00:24.8]} 27...
h3 {[%clk 0:00:14.1]} 28. Qxb6 {[%clk 0:00:19.6]} 28... Bxd5 {[%clk 0:00:09.5]}
29. Qxd6 {[%clk 0:00:18.8]} 29... Rxe1+ {[%clk 0:00:09.5]} 30. Rxe1 {[%clk
0:00:18]} 30... Rxd6 {[%clk 0:00:10.1]} 31. cxd5 {[%clk 0:00:18.4]} 31... hxg2
{[%clk 0:00:10.1]} 32. Kxg2 {[%clk 0:00:18.3]} 32... Rb6 {[%clk 0:00:09.5]} 33.
Rb1 {[%clk 0:00:17.1]} 33... Nd6 {[%clk 0:00:09.6]} 34. Kf3 {[%clk 0:00:17.1]}
34... Kf8 {[%clk 0:00:09]} 35. Ke3 {[%clk 0:00:17.3]} 35... Ke7 {[%clk
0:00:09.5]} 36. Kd4 {[%clk 0:00:17.2]} 36... Rb8 {[%clk 0:00:05.8]} 37. Bc4
{[%clk 0:00:16.8]} 37... Rc8 {[%clk 0:00:05.1]} 38. Bd3 {[%clk 0:00:16.7]} 38...
g6 {[%clk 0:00:04.8]} 39. b5 {[%clk 0:00:16.3]} 39... Rb8 {[%clk 0:00:04.5]} 40.
b6 {[%clk 0:00:16.3]} 40... Kf6 {[%clk 0:00:04.6]} 41. Kc5 {[%clk 0:00:15.8]}
41... Ke5 {[%clk 0:00:04]} 42. Re1+ {[%clk 0:00:14.4]} 42... Ne4+ {[%clk
0:00:04.5]} 43. Bxe4 {[%clk 0:00:14.2]} 43... fxe4 {[%clk 0:00:04.9]} 44. f3
{[%clk 0:00:12.4]} 44... f5 {[%clk 0:00:04.1]} 45. fxe4 {[%clk 0:00:12.1]} 45...
fxe4 {[%clk 0:00:04.3]} 46. d6 {[%clk 0:00:12.2]} 46... Kf4 {[%clk 0:00:03]} 47.
d7 {[%clk 0:00:11.3]} 47... e3 {[%clk 0:00:03.1]} 48. Kc6 {[%clk 0:00:11]} 48...
Kf3 {[%clk 0:00:03.5]} 49. Kc7 {[%clk 0:00:10.9]} 49... Rh8 {[%clk 0:00:02.6]}
50. b7 {[%clk 0:00:10.3]} 1-0

[Event "*** Titled Tuesday Blitz"]
[Site "Chess.com"]
[Date "2021.04.27"]
[Round "3"]
[White "DonBroca"]
[Black "ukchessbomber"]
[Result "0-1"]
[WhiteElo "2216"]
[BlackElo "2513"]
[TimeControl "180+1"]
[EndTime "10:28:49 PDT"]
[Termination "ukchessbomber won by resignation"]

1. e4 {[%clk 0:03:00.9]} 1... g6 {[%clk 0:03:00.9]} 2. d4 {[%clk 0:02:59.2]}
2... Bg7 {[%clk 0:03:01.8]} 3. Nf3 {[%clk 0:02:59.2]} 3... d6 {[%clk 0:03:01.9]}
4. c4 {[%clk 0:02:59.7]} 4... Nf6 {[%clk 0:03:00.9]} 5. Nc3 {[%clk 0:02:57.6]}
5... O-O {[%clk 0:03:01]} 6. Be2 {[%clk 0:02:43.8]} 6... a5 {[%clk 0:02:59.5]}
7. h3 {[%clk 0:02:43.2]} 7... e5 {[%clk 0:02:59.4]} 8. Be3 {[%clk 0:02:43.3]}
8... Nc6 {[%clk 0:02:58.3]} 9. d5 {[%clk 0:02:40.3]} 9... Ne7 {[%clk 0:02:57.9]}
10. Qd2 {[%clk 0:02:39.4]} 10... Nd7 {[%clk 0:02:57.8]} 11. Bh6 {[%clk
0:02:37.7]} 11... Nc5 {[%clk 0:02:56.5]} 12. Bxg7 {[%clk 0:02:36.1]} 12... Kxg7
{[%clk 0:02:57.4]} 13. g4 {[%clk 0:02:34.9]} 13... c6 {[%clk 0:02:41]} 14. Rg1
{[%clk 0:02:34.1]} 14... cxd5 {[%clk 0:02:40.7]} 15. cxd5 {[%clk 0:02:34]} 15...
Bd7 {[%clk 0:02:33.3]} 16. Nh4 {[%clk 0:02:33.6]} 16... b5 {[%clk 0:02:17.9]}
17. Nf5+ {[%clk 0:02:28.9]} 17... Nxf5 {[%clk 0:01:25.1]} 18. gxf5 {[%clk
0:02:29.8]} 18... b4 {[%clk 0:01:24.9]} 19. Nb5 {[%clk 0:01:29.9]} 19... Nxe4
{[%clk 0:01:05.3]} 20. Qe3 {[%clk 0:01:29.4]} 20... Bxf5 {[%clk 0:01:05.6]} 21.
Bd3 {[%clk 0:01:29]} 21... Qh4 {[%clk 0:01:06]} 22. Bxe4 {[%clk 0:01:20.5]}
22... Qxe4 {[%clk 0:01:05.9]} 23. Nxd6 {[%clk 0:01:16.4]} 23... Qxe3+ {[%clk
0:01:05.1]} 24. fxe3 {[%clk 0:01:14.3]} 24... Bxh3 {[%clk 0:01:06]} 25. e4
{[%clk 0:01:04.6]} 25... f5 {[%clk 0:01:01.8]} 26. exf5 {[%clk 0:00:47.6]} 26...
Bxf5 {[%clk 0:01:02.7]} 27. Rc1 {[%clk 0:00:46.1]} 27... Ra7 {[%clk 0:00:53.8]}
28. Rc5 {[%clk 0:00:25.6]} 28... Rd7 {[%clk 0:00:48.5]} 29. Nc4 {[%clk
0:00:21.8]} 29... Bd3 {[%clk 0:00:17]} 30. Nxa5 {[%clk 0:00:20.2]} 30... Be4
{[%clk 0:00:14.8]} 31. Nc6 {[%clk 0:00:16.8]} 31... Rxd5 {[%clk 0:00:13.6]} 32.
Rxd5 {[%clk 0:00:16.3]} 32... Bxd5 {[%clk 0:00:14.5]} 33. Nxb4 {[%clk
0:00:16.7]} 33... Bg8 {[%clk 0:00:13.7]} 34. a3 {[%clk 0:00:16.4]} 34... h5
{[%clk 0:00:12.3]} 35. Nc6 {[%clk 0:00:13.8]} 35... Bd5 {[%clk 0:00:11.3]} 36.
Ne7 {[%clk 0:00:11.3]} 36... Be4 {[%clk 0:00:07.6]} 37. Ke2 {[%clk 0:00:10.1]}
37... Re8 {[%clk 0:00:07.3]} 38. Ke3 {[%clk 0:00:10.5]} 38... Bc2 {[%clk
0:00:07.9]} 39. Nf5+ {[%clk 0:00:08]} 39... Bxf5 {[%clk 0:00:07.8]} 40. Kf3
{[%clk 0:00:07.6]} 40... e4+ {[%clk 0:00:07.5]} 41. Ke3 {[%clk 0:00:08.5]} 41...
Kf6 {[%clk 0:00:07.3]} 42. Rc1 {[%clk 0:00:09.4]} 42... Kg5 {[%clk 0:00:07.4]}
43. Rg1+ {[%clk 0:00:09.1]} 43... Kf6 {[%clk 0:00:07.6]} 44. Rh1 {[%clk
0:00:09.5]} 44... Rh8 {[%clk 0:00:07.4]} 45. Rh4 {[%clk 0:00:08]} 45... Kg5
{[%clk 0:00:07.3]} 46. Rh2 {[%clk 0:00:08.6]} 46... h4 {[%clk 0:00:08.2]} 47.
Rg2+ {[%clk 0:00:08.8]} 47... Kf6 {[%clk 0:00:08.4]} 48. Rh2 {[%clk 0:00:08.6]}
48... h3 {[%clk 0:00:09.3]} 49. Kf4 {[%clk 0:00:09]} 49... Rh4+ {[%clk
0:00:08.8]} 50. Kg3 {[%clk 0:00:09.2]} 50... Rg4+ {[%clk 0:00:09.7]} 51. Kxh3
{[%clk 0:00:09.4]} 51... Rg5+ {[%clk 0:00:09.1]} 52. Kh4 {[%clk 0:00:09.2]}
52... Rh5+ {[%clk 0:00:09.8]} 53. Kg3 {[%clk 0:00:10.1]} 53... Rxh2 {[%clk
0:00:10.7]} 54. Kxh2 {[%clk 0:00:10.7]} 54... Ke5 {[%clk 0:00:11.6]} 55. Kg3
{[%clk 0:00:11]} 55... Kd4 {[%clk 0:00:12.3]} 56. Kf4 {[%clk 0:00:11]} 56... Kd3
{[%clk 0:00:12.8]} 57. Kg5 {[%clk 0:00:11.9]} 57... e3 {[%clk 0:00:13.7]} 58.
Kf6 {[%clk 0:00:12.8]} 58... e2 {[%clk 0:00:14.6]} 0-1

[Event "*** Titled Tuesday Blitz"]
[Site "Chess.com"]
[Date "2021.04.27"]
[Round "3"]
[White "MerryPoppies"]
[Black "playablecharacter"]
[Result "0-1"]
[WhiteElo "2089"]
[BlackElo "2299"]
[TimeControl "180+1"]
[EndTime "10:28:54 PDT"]
[Termination "playablecharacter won by checkmate"]

1. d4 {[%clk 0:03:00.9]} 1... f5 {[%clk 0:02:58.9]} 2. Nc3 {[%clk 0:02:58.8]}
2... Nf6 {[%clk 0:02:49.7]} 3. Bg5 {[%clk 0:02:58.5]} 3... d5 {[%clk 0:02:41.7]}
4. Bxf6 {[%clk 0:02:55.1]} 4... exf6 {[%clk 0:02:40.3]} 5. f3 {[%clk 0:02:55]}
5... Bb4 {[%clk 0:02:37]} 6. Qd3 {[%clk 0:02:48.2]} 6... O-O {[%clk 0:02:35]} 7.
a3 {[%clk 0:02:41.8]} 7... Ba5 {[%clk 0:02:34.3]} 8. e3 {[%clk 0:02:25.3]} 8...
Re8 {[%clk 0:02:25.4]} 9. O-O-O {[%clk 0:02:19.7]} 9... Qe7 {[%clk 0:02:19.7]}
10. Nxd5 {[%clk 0:02:13.6]} 10... Qd6 {[%clk 0:02:19.1]} 11. Qb3 {[%clk
0:01:32.1]} 11... Be6 {[%clk 0:02:15.7]} 12. Bc4 {[%clk 0:01:31.9]} 12... Nd7
{[%clk 0:01:55.9]} 13. Nh3 {[%clk 0:01:20.4]} 13... c6 {[%clk 0:01:48.3]} 14.
Ndf4 {[%clk 0:01:07.8]} 14... Bxc4 {[%clk 0:01:43.4]} 15. Qxc4+ {[%clk
0:01:08.7]} 15... Kh8 {[%clk 0:01:43]} 16. Rd3 {[%clk 0:00:50.9]} 16... b5
{[%clk 0:01:41.3]} 17. Qb3 {[%clk 0:00:47.9]} 17... Nb6 {[%clk 0:01:35.7]} 18.
Nf2 {[%clk 0:00:37.2]} 18... Nc4 {[%clk 0:01:30.4]} 19. Nh5 {[%clk 0:00:36.2]}
19... g6 {[%clk 0:01:22.5]} 20. Ng3 {[%clk 0:00:36.1]} 20... f4 {[%clk
0:01:18.5]} 21. Nge4 {[%clk 0:00:33.1]} 21... Qc7 {[%clk 0:01:04.6]} 22. Nxf6
{[%clk 0:00:25.7]} 22... Re6 {[%clk 0:01:04.5]} 23. N6e4 {[%clk 0:00:25.2]}
23... fxe3 {[%clk 0:01:02.7]} 24. Ng4 {[%clk 0:00:25.1]} 24... e2 {[%clk
0:01:02.2]} 25. c3 {[%clk 0:00:18.7]} 25... Rae8 {[%clk 0:00:56.9]} 26. Re1
{[%clk 0:00:18.1]} 26... h5 {[%clk 0:00:56.9]} 27. Ngf2 {[%clk 0:00:17.8]} 27...
Qxh2 {[%clk 0:00:56.4]} 28. Qc2 {[%clk 0:00:17.4]} 28... Qxg2 {[%clk 0:00:55.1]}
29. Qxe2 {[%clk 0:00:16.6]} 29... Kg7 {[%clk 0:00:50]} 30. Qf1 {[%clk
0:00:15.2]} 30... Qh2 {[%clk 0:00:42.6]} 31. Qg1 {[%clk 0:00:14.4]} 31... Qf4+
{[%clk 0:00:43.2]} 32. Kb1 {[%clk 0:00:13.7]} 32... Nd6 {[%clk 0:00:38.2]} 33.
Rde3 {[%clk 0:00:12]} 33... Bb6 {[%clk 0:00:33]} 34. Nh3 {[%clk 0:00:10.1]}
34... Qf8 {[%clk 0:00:19.7]} 35. Nhg5 {[%clk 0:00:09.9]} 35... Nxe4 {[%clk
0:00:16.1]} 36. fxe4 {[%clk 0:00:09.5]} 36... Rf6 {[%clk 0:00:15.7]} 37. e5
{[%clk 0:00:09.3]} 37... Rf5 {[%clk 0:00:15.6]} 38. Rg3 {[%clk 0:00:08.5]} 38...
Bd8 {[%clk 0:00:14.6]} 39. Ne4 {[%clk 0:00:06.3]} 39... Re6 {[%clk 0:00:14.8]}
40. Re2 {[%clk 0:00:05.3]} 40... Qf7 {[%clk 0:00:15.1]} 41. Qg2 {[%clk
0:00:04.9]} 41... Be7 {[%clk 0:00:15.5]} 42. Re1 {[%clk 0:00:05.1]} 42... c5
{[%clk 0:00:16]} 43. Rg1 {[%clk 0:00:05.4]} 43... cxd4 {[%clk 0:00:16.1]} 44.
cxd4 {[%clk 0:00:05.6]} 44... b4 {[%clk 0:00:16.6]} 45. Ng5 {[%clk 0:00:05.9]}
45... Bxg5 {[%clk 0:00:16.7]} 46. Rxg5 {[%clk 0:00:06.1]} 46... Rxg5 {[%clk
0:00:17.6]} 47. Qxg5 {[%clk 0:00:07]} 47... bxa3 {[%clk 0:00:18.3]} 48. bxa3
{[%clk 0:00:07]} 48... Qb7+ {[%clk 0:00:17.3]} 49. Ka2 {[%clk 0:00:06.9]} 49...
Qd5+ {[%clk 0:00:16.4]} 50. Kb1 {[%clk 0:00:05.6]} 50... Rb6+ {[%clk 0:00:16.2]}
51. Kc2 {[%clk 0:00:05.5]} 51... Rc6+ {[%clk 0:00:15.9]} 52. Kb1 {[%clk
0:00:05.4]} 52... Qb3+ {[%clk 0:00:14.9]} 53. Ka1 {[%clk 0:00:05.2]} 53... Qxa3+
{[%clk 0:00:14.4]} 54. Kb1 {[%clk 0:00:05.7]} 54... Qb3+ {[%clk 0:00:14.7]} 55.
Ka1 {[%clk 0:00:06]} 55... Ra6# {[%clk 0:00:15.6]} 0-1

[Event "*** Titled Tuesday Blitz"]
[Site "Chess.com"]
[Date "2021.04.27"]
[Round "3"]
[White "Kozok"]
[Black "PawnEatingZombie"]
[Result "1-0"]
[WhiteElo "2523"]
[BlackElo "2248"]
[TimeControl "180+1"]
[EndTime "10:28:58 PDT"]
[Termination "Kozok won on time"]

1. e4 {[%clk 0:03:00.9]} 1... c6 {[%clk 0:03:00]} 2. d4 {[%clk 0:03:00.5]} 2...
d5 {[%clk 0:03:00.4]} 3. e5 {[%clk 0:03:01.2]} 3... Bf5 {[%clk 0:02:59.8]} 4. g4
{[%clk 0:03:01.8]} 4... Bg6 {[%clk 0:02:59]} 5. h4 {[%clk 0:03:01.9]} 5... h5
{[%clk 0:02:51.6]} 6. e6 {[%clk 0:03:00.6]} 6... Qd6 {[%clk 0:02:35.1]} 7. exf7+
{[%clk 0:02:58]} 7... Bxf7 {[%clk 0:02:33.4]} 8. g5 {[%clk 0:02:47.1]} 8... Nd7
{[%clk 0:02:27.8]} 9. f4 {[%clk 0:02:38.4]} 9... Be6 {[%clk 0:01:57.8]} 10. Bd3
{[%clk 0:02:32.1]} 10... Bg4 {[%clk 0:01:58.1]} 11. Nf3 {[%clk 0:02:24.7]} 11...
O-O-O {[%clk 0:01:51.3]} 12. Be3 {[%clk 0:02:19.7]} 12... e6 {[%clk 0:01:51]}
13. Nbd2 {[%clk 0:02:19.2]} 13... Ne7 {[%clk 0:01:50.4]} 14. c3 {[%clk
0:02:17.5]} 14... Nf5 {[%clk 0:01:50]} 15. Bf2 {[%clk 0:02:17.3]} 15... g6
{[%clk 0:01:44.5]} 16. Qa4 {[%clk 0:02:12.5]} 16... Kb8 {[%clk 0:01:42.4]} 17.
Bxf5 {[%clk 0:01:54.7]} 17... Bxf5 {[%clk 0:01:37.7]} 18. Ne5 {[%clk 0:01:52.2]}
18... Rh7 {[%clk 0:01:01.7]} 19. O-O-O {[%clk 0:01:50.2]} 19... Rc8 {[%clk
0:00:49.5]} 20. Rhe1 {[%clk 0:01:41.7]} 20... c5 {[%clk 0:00:48.6]} 21. dxc5
{[%clk 0:01:35.6]} 21... Nxc5 {[%clk 0:00:31.6]} 22. Bxc5 {[%clk 0:01:35]} 22...
Rxc5 {[%clk 0:00:29.5]} 23. Ndc4 {[%clk 0:01:21.6]} 23... Qd8 {[%clk 0:00:19]}
24. b4 {[%clk 0:01:13]} 24... Rc8 {[%clk 0:00:17.8]} 25. Kb2 {[%clk 0:01:11.5]}
25... Rhc7 {[%clk 0:00:16.1]} 26. Qb5 {[%clk 0:00:40.3]} 26... Rxc4 {[%clk
0:00:12.9]} 27. Nxc4 {[%clk 0:00:40.1]} 27... Qc7 {[%clk 0:00:08.7]} 28. Rd4
{[%clk 0:00:28.1]} 28... dxc4 {[%clk 0:00:07.8]} 29. Red1 {[%clk 0:00:26.2]}
29... a6 {[%clk 0:00:07.5]} 30. Qa4 {[%clk 0:00:23]} 30... e5 {[%clk 0:00:07.4]}
31. Rd7 {[%clk 0:00:23.1]} 31... Bxd7 {[%clk 0:00:06.4]} 32. Rxd7 {[%clk
0:00:22.3]} 32... Qc6 {[%clk 0:00:05.8]} 33. Qxc6 {[%clk 0:00:22.6]} 33... bxc6
{[%clk 0:00:05]} 34. fxe5 {[%clk 0:00:23.5]} 34... c5 {[%clk 0:00:04.1]} 35. e6
{[%clk 0:00:20.4]} 35... cxb4 {[%clk 0:00:04.2]} 36. e7 {[%clk 0:00:20.9]} 36...
Bxe7 {[%clk 0:00:03.8]} 37. Rxe7 {[%clk 0:00:21.3]} 37... bxc3+ {[%clk
0:00:04.4]} 38. Kxc3 {[%clk 0:00:22.2]} 38... Rf8 {[%clk 0:00:02.9]} 39. Re6
{[%clk 0:00:18.4]} 39... Rf3+ {[%clk 0:00:02.6]} 40. Kxc4 {[%clk 0:00:18.5]}
40... Rf4+ {[%clk 0:00:03.2]} 41. Kc5 {[%clk 0:00:18.9]} 41... Rxh4 {[%clk
0:00:03.8]} 42. Rxg6 {[%clk 0:00:19.4]} 42... Rg4 {[%clk 0:00:03.6]} 43. Kb6
{[%clk 0:00:19.7]} 43... Kc8 {[%clk 0:00:03.4]} 44. Kxa6 {[%clk 0:00:19.5]}
44... h4 {[%clk 0:00:03.5]} 45. Kb6 {[%clk 0:00:16.4]} 45... h3 {[%clk
0:00:03.4]} 46. Rg8+ {[%clk 0:00:16.5]} 46... Kd7 {[%clk 0:00:03.4]} 47. g6
{[%clk 0:00:16.9]} 47... h2 {[%clk 0:00:03.4]} 48. Rh8 {[%clk 0:00:16.1]} 48...
Rxg6+ {[%clk 0:00:03.3]} 49. Kb5 {[%clk 0:00:16.5]} 49... Rg2 {[%clk 0:00:03.9]}
50. a4 {[%clk 0:00:16.4]} 50... Kc7 {[%clk 0:00:03.5]} 51. a5 {[%clk 0:00:16.1]}
51... Rb2+ {[%clk 0:00:03.2]} 52. Kc5 {[%clk 0:00:16.4]} 52... Kb7 {[%clk
0:00:03.1]} 53. Kc4 {[%clk 0:00:13.9]} 53... Ka6 {[%clk 0:00:03]} 54. Rh5 {[%clk
0:00:14.3]} 54... Rf2 {[%clk 0:00:02.3]} 55. Kd3 {[%clk 0:00:14.4]} 55... Rb2
{[%clk 0:00:01.8]} 56. Kc3 {[%clk 0:00:14.7]} 56... Ra2 {[%clk 0:00:02.3]} 57.
Kb3 {[%clk 0:00:15.3]} 1-0